fUSD/lending_fUSD_20250618
["ID","MTS","AMOUNT","RATE_DAILY","PERIOD"]
[366406008,1750234259581,-1539.13,0.00016602,2]
[366406009,1750234259590,-865.52,0.00016602,2]
[366406010,1750234259599,-583.36,0.00016602,2]
[366406011,1750234259608,-1296.85,0.00016602,2]
[366406012,1750234259617,-490.0,0.00016602,2]
[366406013,1750234259627,-622.91,0.00016602,2]
[366406014,1750234259636,-1000.0,0.00016602,2]
[366406015,1750234259646,-490.0,0.00016602,2]
[366406016,1750234259655,-2516.8,0.00016602,2]
[366406017,1750234259665,-743.38,0.00016602,2]
[366406018,1750234259674,-490.0,0.00016602,2]
[366406019,1750234259683,-490.0,0.00016602,2]
[366406020,1750234259693,-1921.62,0.00016602,2]
[366406021,1750234259703,-490.0,0.00016602,2]
[366406022,1750234259712,-490.0,0.00016602,2]
[366406023,1750234259722,-614.88,0.00016602,2]
[366406024,1750234259731,-490.0,0.00016602,2]
[366406025,1750234259741,-2425.96,0.00016602,2]
[366406026,1750234259751,-1692.79,0.00016602,2]
[366406027,1750234259760,-490.0,0.00016602,2]
[366406028,1750234259769,-490.0,0.00016602,2]
[366406029,1750234259779,-490.0,0.00016602,2]
[366406030,1750234259789,-1748.68,0.00016602,2]
[366406031,1750234259799,-490.0,0.00016602,2]
[366406032,1750234259808,-490.0,0.00016602,2]
[366406033,1750234259818,-2491.22,0.00016602,2]
[366406034,1750234259827,-490.0,0.00016602,2]
[366406035,1750234259840,-688.32,0.00016602,2]
[366406036,1750234259849,-1210.3,0.00016602,2]
[366406037,1750234259859,-547.41,0.00016602,2]
[366406038,1750234259869,-490.0,0.00016602,2]
[366406039,1750234259879,-785.73,0.00016602,2]
[366406040,1750234259888,-1165.23,0.00016602,2]
[366406041,1750234259898,-1377.84,0.00016602,2]
[366406042,1750234259908,-151.0,0.00016602,2]
[366406043,1750234259918,-227.950869,0.00016602,2]
[366406044,1750234259927,-490.0,0.00016602,2]
[366406045,1750234259937,-1790.2,0.00016602,2]
[366406046,1750234259947,-797.57,0.00016602,2]
[366406047,1750234259957,-490.0,0.00016602,2]
[366406048,1750234259966,-1079.33,0.00016602,2]
[366406049,1750234259976,-490.0,0.00016602,2]
[366406050,1750234259985,-153.04928,0.00016602,2]
[366406051,1750234259995,-490.0,0.00016602,2]
[366406052,1750234260005,-153.04928,0.00016602,2]
[366406053,1750234260015,-1205.73,0.00016602,2]
[366406054,1750234260026,-153.04928,0.00016602,2]
[366406055,1750234260035,-490.0,0.00016602,2]
[366406056,1750234260046,-490.0,0.00016602,2]
[366406057,1750234260055,-153.04928,0.00016602,2]
[366406058,1750234260065,-490.0,0.00016602,2]
[366406059,1750234260075,-153.04928,0.00016602,2]
[366406060,1750234260091,-3504.12,0.00016602,2]
[366406061,1750234260101,-490.0,0.00016602,2]
[366406062,1750234260111,-490.0,0.00016602,2]
[366406063,1750234260121,-153.04928,0.00016602,2]
[366406064,1750234260132,-153.04928,0.00016602,2]
[366406065,1750234260141,-1500.35,0.00016602,2]
[366406066,1750234260152,-153.04928,0.00016602,2]
[366406067,1750234260162,-490.0,0.00016602,2]
[366406068,1750234260172,-153.04928,0.00016602,2]
[366406069,1750234260182,-153.04928,0.00016602,2]
[366406070,1750234260191,-490.0,0.00016602,2]
[366406071,1750234260201,-667.87,0.00016602,2]
[366406072,1750234260211,-2416.72,0.00016602,2]
[366406073,1750234260220,-490.0,0.00016602,2]
[366406074,1750234260230,-490.0,0.00016602,2]
[366406075,1750234260240,-653.2,0.00016602,2]
[366406076,1750234260251,-434.80920809,0.00016602,2]
[366406077,1750234260262,-1074.24,0.00016602,2]
[366406078,1750234260271,-490.0,0.00016602,2]
[366406079,1750234260281,-490.0,0.00016602,2]
[366406080,1750234260290,-1127.96,0.00016602,2]
[366406081,1750234260301,-490.0,0.00016602,2]
[366406082,1750234260310,-490.0,0.00016602,2]
[366406083,1750234260320,-1435.41,0.00016602,2]
[366406084,1750234260332,-490.0,0.00016602,2]
[366406085,1750234260341,-1439.14,0.00016602,2]
[366406086,1750234260351,-490.0,0.00016602,2]
[366406087,1750234260361,-490.0,0.00016602,2]
[366406088,1750234260371,-1064.92,0.00016602,2]
[366406089,1750234260380,-610.86,0.00016602,2]
[366406090,1750234260389,-1599.47,0.00016602,2]
[366406091,1750234260398,-490.0,0.00016602,2]
[366406092,1750234260408,-948.0,0.00016602,2]
[366406093,1750234260417,-2022.77,0.00016602,2]
[366406094,1750234260427,-490.0,0.00016602,2]
[366406095,1750234260437,-994.98,0.00016602,2]
[366406096,1750234260447,-584.43,0.00016602,2]
[366406097,1750234260456,-923.15,0.00016602,2]
[366406098,1750234260465,-490.0,0.00016602,2]
[366406099,1750234260474,-490.0,0.00016602,2]
[366406100,1750234260484,-1259.4,0.00016602,2]
[366406101,1750234260493,-581.74,0.00016602,2]
[366406102,1750234260502,-934.13,0.00016602,2]
[366406103,1750234260512,-490.0,0.00016602,2]
[366406104,1750234260521,-1330.77,0.00016602,2]
[366406105,1750234260531,-151.0,0.00016602,2]
[366406106,1750234260540,-159.799532,0.00016602,2]
[366406107,1750234260550,-2053.82,0.00016602,2]
[366406108,1750234260560,-735.33,0.00016602,2]
[366406109,1750234260570,-1229.97,0.00016602,2]
[366406110,1750234260581,-151.0,0.00016602,2]
[366406111,1750234260595,-152.379308,0.00016602,2]
[366406112,1750234260604,-490.0,0.00016602,2]
[366406113,1750234260615,-490.0,0.00016602,2]
[366406114,1750234260625,-1617.6,0.00016602,2]
[366406115,1750234260635,-2449.28,0.00016602,2]
[366406116,1750234260645,-1347.19,0.00016602,2]
[366406117,1750234260654,-2946.12,0.00016602,2]
[366406118,1750234260664,-668.74,0.00016602,2]
[366406119,1750234260673,-2691.97,0.00016602,2]
[366406120,1750234260683,-291.38203482,0.00016602,2]
[366406121,1750234260692,-8627.5,0.00016602,2]
[366406122,1750234260702,-490.0,0.00016602,2]
[366406123,1750234260711,-1226.12,0.00016602,2]
[366406124,1750234260721,-2640.35,0.00016602,2]
[366406125,1750234260730,-1676.37,0.00016602,2]
[366406126,1750234260740,-1305.6,0.00016602,2]
[366406127,1750234260750,-2432.93,0.00016602,2]
[366406128,1750234260759,-490.0,0.00016602,2]
[366406129,1750234260769,-4894.13,0.00016602,2]
[366406130,1750234260779,-490.0,0.00016602,2]
[366406131,1750234260789,-151.0,0.00016602,2]
[366406132,1750234260799,-151.0,0.00016602,2]
[366406133,1750234260808,-151.0,0.00016602,2]
[366406134,1750234260827,-151.0,0.00016602,2]
[366406135,1750234260837,-532.55,0.00016602,2]
[366406136,1750234260847,-21368.42,0.00016602,2]
[366406137,1750234260857,-618.45,0.00016602,2]
[366406138,1750234260867,-24970.95,0.00016602,2]
[366406139,1750234260877,-18395.49,0.00016602,2]
[366406140,1750234260886,-490.0,0.00016602,2]
[366406141,1750234260895,-490.0,0.00016602,2]
[366406142,1750234260905,-1866.72,0.00016602,2]
[366406143,1750234260914,-695.99,0.00016602,2]
[366406144,1750234260924,-490.0,0.00016602,2]
[366406145,1750234260934,-1316.53,0.00016602,2]
[366406146,1750234260943,-490.0,0.00016602,2]
[366406147,1750234260952,-1252.53,0.00016602,2]
[366406148,1750234260962,-2062.39,0.00016602,2]
[366406149,1750234260971,-796.41,0.00016602,2]
[366406150,1750234260981,-913.62,0.00016602,2]
[366406151,1750234260990,-8176.31,0.00016602,2]
[366406152,1750234261000,-490.0,0.00016602,2]
[366406153,1750234261009,-185.55402907,0.00016602,2]
[366406154,1750234261019,-501.21,0.00016602,2]
[366406155,1750234261028,-2397.79,0.00016602,2]
[366406156,1750234261037,-490.0,0.00016602,2]
[366406157,1750234261051,-490.0,0.00016602,2]
[366406158,1750234261060,-490.0,0.00016602,2]
[366406159,1750234261070,-4581.46,0.00016602,2]
[366406160,1750234261079,-1623.36,0.00016602,2]
[366406161,1750234261090,-4659.1,0.00016602,2]
[366406162,1750234261099,-3506.03,0.00016602,2]
[366406163,1750234261109,-1741.24,0.00016602,2]
[366406164,1750234261119,-490.0,0.00016602,2]
[366406165,1750234261129,-490.0,0.00016602,2]
[366406166,1750234261138,-490.0,0.00016602,2]
[366406167,1750234261148,-490.0,0.00016602,2]
[366406168,1750234261158,-1903.14,0.00016602,2]
[366406169,1750234261168,-1998.78,0.00016602,2]
[366406170,1750234261178,-1405.34,0.00016602,2]
[366406171,1750234261188,-501.36442655,0.00016602,2]
[366406172,1750234261198,-2377.87,0.00016602,2]
[366406173,1750234261209,-490.0,0.00016602,2]
[366406174,1750234261220,-6249.52,0.00016602,2]
[366406175,1750234261229,-490.0,0.00016602,2]
[366406176,1750234261239,-490.0,0.00016602,2]
[366406177,1750234261249,-490.0,0.00016602,2]
[366406178,1750234261259,-569.01,0.00016602,2]
[366406179,1750234261271,-944.9,0.00016602,2]
[366406180,1750234261281,-152.042463,0.00016602,2]
[366406181,1750234261291,-490.0,0.00016602,2]
[366406182,1750234261301,-490.0,0.00016602,2]
[366406183,1750234261311,-1692.65,0.00016602,2]
[366406184,1750234261321,-15533.32,0.00016602,2]
[366406185,1750234261334,-490.0,0.00016602,2]
[366406186,1750234261349,-490.0,0.00016602,2]
[366406187,1750234261360,-509.93,0.00016602,2]
[366406188,1750234261373,-932.9,0.00016602,2]
[366406189,1750234261384,-3172.28,0.00016602,2]
[366406190,1750234261395,-1804.27,0.00016602,2]
[366406191,1750234261405,-1337.85,0.00016602,2]
[366406192,1750234261414,-1332.52,0.00016602,2]
[366406193,1750234261425,-490.0,0.00016602,2]
[366406194,1750234261435,-1336.3,0.00016602,2]
[366406195,1750234261445,-2853.57,0.00016602,2]
[366406196,1750234261455,-1850.55,0.00016602,2]
[366406197,1750234261466,-490.0,0.00016602,2]
[366406198,1750234261476,-490.0,0.00016602,2]
[366406199,1750234261487,-845.71,0.00016602,2]
[366406200,1750234261497,-151.0,0.00016602,2]
[366406201,1750234261508,-490.0,0.00016602,2]
[366406202,1750234261518,-1988.77,0.00016602,2]
[366406203,1750234261528,-959.76,0.00016602,2]
[366406204,1750234261538,-3685.42,0.00016602,2]
[366406205,1750234261548,-517.42,0.00016602,2]
[366406206,1750234261559,-582.5,0.00016602,2]
[366406207,1750234261570,-494.56,0.00016602,2]
[366406208,1750234261584,-490.0,0.00016602,2]
[366406209,1750234261594,-3924.46,0.00016602,2]
[366406210,1750234261605,-1611.5,0.00016602,2]
[366406211,1750234261615,-490.0,0.00016602,2]
[366406212,1750234261626,-1006.01,0.00016602,2]
[366406213,1750234261637,-686.73,0.00016602,2]
[366406214,1750234261647,-6713.86,0.00016602,2]
[366406215,1750234261658,-8789.62,0.00016602,2]
[366406216,1750234261669,-691.36,0.00016602,2]
[366406217,1750234261680,-1288.05,0.00016602,2]
[366406218,1750234261691,-2002.11,0.00016602,2]
[366406219,1750234261701,-2483.72,0.00016602,2]
[366406220,1750234261712,-490.0,0.00016602,2]
[366406221,1750234261722,-2649.86,0.00016602,2]
[366406222,1750234261732,-1193.27,0.00016602,2]
[366406223,1750234261744,-1950.9,0.00016602,2]
[366406224,1750234261755,-563.86,0.00016602,2]
[366406225,1750234261765,-490.0,0.00016602,2]
[366406226,1750234261775,-1350.94,0.00016602,2]
[366406227,1750234261785,-490.0,0.00016602,2]
[366406228,1750234261796,-490.0,0.00016602,2]
[366406229,1750234261806,-490.0,0.00016602,2]
[366406230,1750234261817,-496.44636209,0.00016602,2]
[366406231,1750234261827,-3547.75,0.00016602,2]
[366406232,1750234261840,-4782.51,0.00016602,2]
[366406233,1750234261851,-490.0,0.00016602,2]
[366406234,1750234261860,-490.0,0.00016602,2]
[366406235,1750234261871,-642.09,0.00016602,2]
[366406236,1750234261881,-558.65171475,0.00016602,2]
[366406237,1750234261892,-490.0,0.00016602,2]
[366406238,1750234261903,-2041.7,0.00016602,2]
[366406239,1750234261913,-490.0,0.00016602,2]
[366406240,1750234261924,-494.85667447,0.00016602,2]
[366406241,1750234261934,-6696.19,0.00016602,2]
[366406242,1750234261944,-490.0,0.00016602,2]
[366406243,1750234261955,-1880.43,0.00016602,2]
[366406244,1750234261965,-490.0,0.00016602,2]
[366406245,1750234261976,-2875.7,0.00016602,2]
[366406246,1750234261985,-750.98,0.00016602,2]
[366406247,1750234261995,-775.24,0.00016602,2]
[366406248,1750234262006,-1972.87,0.00016602,2]
[366406249,1750234262016,-8494.51,0.00016602,2]
[366406250,1750234262027,-2681.46,0.00016602,2]
[366406251,1750234262038,-4677.88,0.00016602,2]
[366406252,1750234262049,-6821.03,0.00016602,2]
[366406253,1750234262060,-490.0,0.00016602,2]
[366406254,1750234262070,-1104.94,0.00016602,2]
[366406255,1750234262083,-3668.3,0.00016602,2]
[366406256,1750234262094,-490.0,0.00016602,2]
[366406257,1750234262106,-1269.38,0.00016602,2]
[366406258,1750234262116,-1439.2,0.00016602,2]
[366406259,1750234262126,-151.0,0.00016602,2]
[366406260,1750234262137,-151.0,0.00016602,2]
[366406261,1750234262148,-2481.27,0.00016602,2]
[366406262,1750234262159,-151.0,0.00016602,2]
[366406263,1750234262170,-153.971974,0.00016602,2]
[366406264,1750234262181,-829.6,0.00016602,2]
[366406265,1750234262191,-997.96,0.00016602,2]
[366406266,1750234262213,-9278.6,0.00016602,2]
[366406267,1750234262225,-2367.18,0.00016602,2]
[366406268,1750234262236,-2475.43,0.00016602,2]
[366406269,1750234262247,-2422.37,0.00016602,2]
[366406270,1750234262259,-490.0,0.00016602,2]
[366406271,1750234262271,-1510.19,0.00016602,2]
[366406272,1750234262285,-1244.73,0.00016602,2]
[366406273,1750234262296,-490.0,0.00016602,2]
[366406274,1750234262307,-906.47,0.00016602,2]
[366406275,1750234262320,-799.64,0.00016602,2]
[366406276,1750234262334,-1576.78,0.00016602,2]
[366406277,1750234262346,-490.0,0.00016602,2]
[366406278,1750234262357,-490.0,0.00016602,2]
[366406279,1750234262368,-1255.38,0.00016602,2]
[366406280,1750234262380,-427.76986138,0.00016602,2]
[366406281,1750234262391,-2728.86,0.00016602,2]
[366406282,1750234262402,-3264.06,0.00016602,2]
[366406283,1750234262413,-243.180948,0.00016602,2]
[366406284,1750234262425,-720.09,0.00016602,2]
[366406285,1750234262435,-490.0,0.00016602,2]
[366406286,1750234262447,-1948.47,0.00016602,2]
[366406287,1750234262459,-1411.73,0.00016602,2]
[366406288,1750234262470,-3505.74,0.00016602,2]
[366406289,1750234262481,-490.0,0.00016602,2]
[366406290,1750234262491,-490.0,0.00016602,2]
[366406291,1750234262502,-495.70409083,0.00016602,2]
[366406292,1750234262513,-2040.33,0.00016602,2]
[366406293,1750234262523,-151.0,0.00016602,2]
[366406294,1750234262534,-151.0,0.00016602,2]
[366406295,1750234262545,-700.58,0.00016602,2]
[366406296,1750234262555,-151.0,0.00016602,2]
[366406297,1750234262567,-151.0,0.00016602,2]
[366406298,1750234262578,-490.0,0.00016602,2]
[366406299,1750234262592,-490.0,0.00016602,2]
[366406300,1750234262602,-5782.65,0.00016602,2]
[366406301,1750234262613,-151.0,0.00016602,2]
[366406302,1750234262623,-490.0,0.00016602,2]
[366406303,1750234262637,-151.0,0.00016602,2]
[366406304,1750234262648,-151.0,0.00016602,2]
[366406305,1750234262659,-685.94,0.00016602,2]
[366406306,1750234262670,-151.0,0.00016602,2]
[366406307,1750234262681,-151.0,0.00016602,2]
[366406308,1750234262692,-206.016068,0.00016602,2]
[366406309,1750234262702,-490.0,0.00016602,2]
[366406310,1750234262713,-490.0,0.00016602,2]
[366406311,1750234262724,-782.02,0.00016602,2]
[366406312,1750234262735,-3095.17,0.00016602,2]
[366406313,1750234262746,-587.71,0.00016602,2]
[366406314,1750234262758,-683.51,0.00016602,2]
[366406315,1750234262769,-1431.28,0.00016602,2]
[366406316,1750234262781,-3006.36,0.00016602,2]
[366406317,1750234262792,-241.622317,0.00016602,2]
[366406318,1750234262803,-241.622317,0.00016602,2]
[366406319,1750234262814,-490.0,0.00016602,2]
[366406320,1750234262824,-241.622317,0.00016602,2]
[366406321,1750234262838,-1151.27,0.00016602,2]
[366406322,1750234262849,-1194.57,0.00016602,2]
[366406323,1750234262860,-241.622317,0.00016602,2]
[366406324,1750234262870,-13289.93,0.00016602,2]
[366406325,1750234262881,-633.71,0.00016602,2]
[366406326,1750234262892,-490.0,0.00016602,2]
[366406327,1750234262902,-490.0,0.00016602,2]
[366406328,1750234262913,-490.0,0.00016602,2]
[366406329,1750234262923,-494.55659029,0.00016602,2]
[366406330,1750234262934,-490.0,0.00016602,2]
[366406331,1750234262945,-3532.09,0.00016602,2]
[366406332,1750234262956,-490.0,0.00016602,2]
[366406333,1750234262967,-241.622317,0.00016602,2]
[366406334,1750234262978,-241.622317,0.00016602,2]
[366406335,1750234262989,-490.0,0.00016602,2]
[366406336,1750234262999,-241.622317,0.00016602,2]
[366406337,1750234263010,-490.0,0.00016602,2]
[366406338,1750234263021,-5644.14,0.00016602,2]
[366406339,1750234263033,-241.622317,0.00016602,2]
[366406340,1750234263044,-1164.03,0.00016602,2]
[366406341,1750234263055,-490.0,0.00016602,2]
[366406342,1750234263067,-490.0,0.00016602,2]
[366406343,1750234263077,-2639.26,0.00016602,2]
[366406344,1750234263091,-2054.07,0.00016602,2]
[366406345,1750234263102,-8173.15,0.00016602,2]
[366406346,1750234263113,-724.72,0.00016602,2]
[366406347,1750234263124,-4076.85,0.00016602,2]
[366406348,1750234263135,-490.0,0.00016602,2]
[366406349,1750234263146,-490.0,0.00016602,2]
[366406350,1750234263156,-4248.64,0.00016602,2]
[366406351,1750234263167,-953.91,0.00016602,2]
[366406352,1750234263177,-490.0,0.00016602,2]
[366406353,1750234263188,-735.22,0.00016602,2]
[366406354,1750234263199,-1296.13,0.00016602,2]
[366406355,1750234263210,-490.0,0.00016602,2]
[366406356,1750234263221,-2420.37,0.00016602,2]
[366406357,1750234263232,-355.11619798,0.00016602,2]
[366406358,1750234263243,-490.0,0.00016602,2]
[366406359,1750234263254,-879.79,0.00016602,2]
[366406360,1750234263265,-490.0,0.00016602,2]
[366406361,1750234263276,-911.01,0.00016602,2]
[366406362,1750234263286,-4191.13,0.00016602,2]
[366406363,1750234263297,-1078.89,0.00016602,2]
[366406364,1750234263308,-490.0,0.00016602,2]
[366406365,1750234263319,-3993.56,0.00016602,2]
[366406366,1750234263330,-490.0,0.00016602,2]
[366406367,1750234263342,-626.64,0.00016602,2]
[366406368,1750234263353,-1454.48,0.00016602,2]
[366406369,1750234263363,-490.0,0.00016602,2]
[366406370,1750234263374,-490.0,0.00016602,2]
[366406371,1750234263385,-490.0,0.00016602,2]
[366406372,1750234263396,-2491.12,0.00016602,2]
[366406373,1750234263406,-1223.89,0.00016602,2]
[366406374,1750234263417,-11221.64,0.00016602,2]
[366406375,1750234263427,-490.0,0.00016602,2]
[366406376,1750234263438,-159.721463,0.00016602,2]
[366406377,1750234263449,-159.721463,0.00016602,2]
[366406378,1750234263459,-490.0,0.00016602,2]
[366406379,1750234263471,-159.721463,0.00016602,2]
[366406380,1750234263481,-159.721463,0.00016602,2]
[366406381,1750234263492,-1386.94,0.00016602,2]
[366406382,1750234263503,-601.24,0.00016602,2]
[366406383,1750234263514,-602.72,0.00016602,2]
[366406384,1750234263525,-159.721463,0.00016602,2]
[366406385,1750234263535,-8145.66,0.00016602,2]
[366406386,1750234263546,-159.721463,0.00016602,2]
[366406387,1750234263556,-159.721463,0.00016602,2]
[366406388,1750234263567,-159.721463,0.00016602,2]
[366406389,1750234263578,-613.1,0.00016602,2]
[366406390,1750234263592,-582.14,0.00016602,2]
[366406391,1750234263603,-4945.14,0.00016602,2]
[366406392,1750234263614,-1297.07,0.00016602,2]
[366406393,1750234263624,-490.0,0.00016602,2]
[366406394,1750234263635,-1411.41,0.00016602,2]
[366406395,1750234263645,-490.0,0.00016602,2]
[366406396,1750234263656,-10412.56,0.00016602,2]
[366406397,1750234263667,-652.53,0.00016602,2]
[366406398,1750234263678,-490.0,0.00016602,2]
[366406399,1750234263689,-724.9,0.00016602,2]
[366406400,1750234263699,-459.43238104,0.00016602,2]
[366406401,1750234263710,-151.0,0.00016602,2]
[366406402,1750234263721,-151.0,0.00016602,2]
[366406403,1750234263732,-807.48,0.00016602,2]
[366406404,1750234263743,-151.0,0.00016602,2]
[366406405,1750234263753,-644.3,0.00016602,2]
[366406406,1750234263763,-151.0,0.00016602,2]
[366406407,1750234263773,-490.0,0.00016602,2]
[366406408,1750234263783,-2133.19,0.00016602,2]
[366406409,1750234263793,-151.0,0.00016602,2]
[366406410,1750234263803,-151.0,0.00016602,2]
[366406411,1750234263814,-151.0,0.00016602,2]
[366406412,1750234263824,-5778.23,0.00016602,2]
[366406413,1750234263835,-575.96,0.00016602,2]
[366406414,1750234263846,-722.77,0.00016602,2]
[366406415,1750234263857,-1982.75,0.00016602,2]
[366406416,1750234263868,-151.0,0.00016602,2]
[366406417,1750234263880,-490.0,0.00016602,2]
[366406418,1750234263891,-599.77,0.00016602,2]
[366406419,1750234263901,-1181.09,0.00016602,2]
[366406420,1750234263912,-1304.25,0.00016602,2]
[366406421,1750234263923,-2517.5,0.00016602,2]
[366406422,1750234263934,-490.0,0.00016602,2]
[366406423,1750234263945,-490.52395401,0.00016602,2]
[366406424,1750234263956,-490.0,0.00016602,2]
[366406425,1750234263966,-1474.25,0.00016602,2]
[366406426,1750234263977,-21830.55,0.00016602,2]
[366406427,1750234263989,-2818.65,0.00016602,2]
[366406428,1750234264357,-1558.96,0.00016602,2]
[366406429,1750234264368,-490.0,0.00016602,2]
[366406430,1750234264378,-490.0,0.00016602,2]
[366406431,1750234264389,-490.0,0.00016602,2]
[366406432,1750234264399,-1370.07,0.00016602,2]
[366406433,1750234264409,-625.670203,0.00016602,2]
[366406434,1750234264419,-625.670203,0.00016602,2]
[366406435,1750234264428,-625.670203,0.00016602,2]
[366406436,1750234264439,-625.670203,0.00016602,2]
[366406437,1750234264449,-490.0,0.00016602,2]
[366406438,1750234264459,-829.02,0.00016602,2]
[366406439,1750234264469,-965.28,0.00016602,2]
[366406440,1750234264479,-625.670203,0.00016602,2]
[366406441,1750234264489,-490.0,0.00016602,2]
[366406442,1750234264499,-1810.48,0.00016602,2]
[366406443,1750234264509,-625.670203,0.00016602,2]
[366406444,1750234264519,-625.670203,0.00016602,2]
[366406445,1750234264529,-625.670203,0.00016602,2]
[366406446,1750234264539,-151.0,0.00016602,2]
[366406447,1750234264549,-151.0,0.00016602,2]
[366406448,1750234264559,-490.0,0.00016602,2]
[366406449,1750234264570,-151.0,0.00016602,2]
[366406450,1750234264580,-151.0,0.00016602,2]
[366406451,1750234264593,-2102.52,0.00016602,2]
[366406452,1750234264603,-490.0,0.00016602,2]
[366406453,1750234264612,-5086.49,0.00016602,2]
[366406454,1750234264623,-490.0,0.00016602,2]
[366406455,1750234264632,-3401.94,0.00016602,2]
[366406456,1750234264642,-1823.73,0.00016602,2]
[366406457,1750234264651,-490.0,0.00016602,2]
[366406458,1750234264661,-512.72468752,0.00016602,2]
[366406459,1750234264671,-178.29859729,0.00016602,2]
[366406460,1750234264681,-500.0,0.00016602,2]
[366406461,1750234264691,-244.68021467,0.00016602,2]
[366406462,1750234264701,-354.86,0.00016603,2]
[366406463,1750234264711,-1215.18977861,0.00016611,2]
[366406464,1750234264721,-151.45770565,0.00016612,2]
[366406465,1750234264731,-500.0,0.0001663,2]
[366406466,1750234264740,-151.1,0.00016642,2]
[366406467,1750234264751,-500.0,0.00016657,2]
[366406468,1750234264760,-1087.54516353,0.00016663,2]
[366406469,1750234264770,-204.39684709,0.00016666,2]
[366406470,1750234264780,-1215.18977861,0.00016666,2]
[366406471,1750234264790,-1012.0,0.00016667,2]
[366406472,1750234264799,-151.45770565,0.00016667,2]
[366406473,1750234264810,-9259.61433305,0.00016667,2]
[366406474,1750234264820,-531.5404764,0.00016667,2]
[366406475,1750234264829,-1534.8868716,0.00016667,2]
[366406476,1750234264843,-33731.29649584,0.00016667,2]
[366406477,1750234264855,-151.0,0.00016672,2]
[366406478,1750234264864,-500.0,0.00016673,2]
[366406479,1750234264874,-992.00738543,0.00016673,2]
[366406480,1750234264884,-500.0,0.00016685,2]
[366406481,1750234264894,-500.0,0.00016699,2]
[366406482,1750234264904,-500.0,0.00016699,2]
[366406483,1750234264914,-4123.36,0.00016699,2]
[366406484,1750234264924,-20744.54,0.000167,2]
[366406485,1750234264934,-82594.8457403,0.000167,2]
[366406486,1750234264943,-151.0,0.000167,2]
[366406487,1750234264953,-218.927476,0.000167,2]
[366406488,1750234264963,-151.0,0.000167,2]
[366406489,1750234264973,-151.0,0.000167,2]
[366406490,1750234264983,-151.0,0.000167,2]
[366406491,1750234264993,-151.0,0.000167,2]
[366406492,1750234265003,-189.10052464,0.00016703,2]
[366406493,1750234265013,-500.0,0.00016712,2]
[366406494,1750234265022,-187.0,0.00016712,2]
[366406495,1750234265032,-1215.18977861,0.00016721,2]
[366406496,1750234265041,-151.45770565,0.00016721,2]
[366406497,1750234265050,-151.0,0.00016724,2]
[366406498,1750234265060,-500.0,0.00016739,2]
[366406499,1750234265070,-159.721463,0.00016744,2]
[366406500,1750234265079,-159.721463,0.00016744,2]
[366406501,1750234265092,-625.670203,0.00016744,2]
[366406502,1750234265102,-625.670203,0.00016744,2]
[366406503,1750234265112,-150.0,0.00016744,2]
[366406504,1750234265122,-946.0,0.00016744,2]
[366406505,1750234265131,-3333.0,0.00016744,2]
[366406506,1750234265141,-637.0,0.00016744,2]
[366406507,1750234265151,-803.0,0.00016744,2]